bitfinex/quotes_BTCUSD_20250902
["timestamp","ask_amount","ask_price","bid_price","bid_amount"]
[1756852323145,0.68383576,111250.0,111230.0,0.68876766]
[1756852323395,0.68061576,111250.0,111230.0,0.3362176]
[1756852323607,0.52933576,111250.0,111230.0,0.3372176]
[1756852323818,0.68061576,111250.0,111230.0,0.3392176]
[1756852324841,0.68383576,111250.0,111230.0,0.3392176]
[1756852325043,0.17979144,111240.0,111230.0,0.3392176]
[1756852325925,0.17979144,111240.0,111230.0,0.3382176]
[1756852326154,0.17979144,111240.0,111230.0,0.3402176]
[1756852326358,0.18194144,111240.0,111230.0,0.3382176]
[1756852326569,0.18194144,111240.0,111230.0,0.15628]
[1756852326570,0.5314915,111240.0,111230.0,0.15628]
[1756852326704,0.5347115,111240.0,111230.0,0.15628]
[1756852326903,0.54361663,111240.0,111230.0,0.15628]
[1756852327110,0.5314915,111240.0,111230.0,0.15628]
[1756852327900,0.5314915,111240.0,111230.0,0.15836]
[1756852328111,0.5314915,111240.0,111230.0,0.15628]
[1756852329946,0.5314915,111240.0,111230.0,0.005]
[1756852329947,0.98517677,111240.0,111230.0,0.005]
[1756852330384,1.01220914,111240.0,111230.0,0.005]
[1756852330803,1.01220914,111240.0,111230.0,0.003]
[1756852331006,1.01220914,111240.0,111210.0,0.18923193]
[1756852331007,0.17982377,111220.0,111210.0,0.18923193]
[1756852331214,0.17982377,111220.0,111210.0,0.34357193]
[1756852331422,0.17982377,111220.0,111210.0,0.34573193]
[1756852331851,0.18461351,111220.0,111210.0,0.34573193]
[1756852332057,0.18180377,111220.0,111210.0,0.34573193]
[1756852332257,0.18180377,111220.0,111210.0,0.34587276]
[1756852332846,0.17982377,111220.0,111210.0,0.34587276]
[1756852333121,0.18263351,111220.0,111210.0,0.34887276]
[1756852333313,0.18461351,111220.0,111210.0,0.33988077]
[1756852333645,0.18180377,111220.0,111210.0,0.33988077]
[1756852333857,0.18180377,111220.0,111210.0,0.18860077]
[1756852334059,0.18180377,111220.0,111210.0,0.16404083]
[1756852334399,0.18180377,111220.0,111210.0,0.34388077]
[1756852334991,0.18180377,111220.0,111210.0,0.16404083]
[1756852335208,0.53135383,111220.0,111210.0,0.16098083]
[1756852335429,0.53135383,111220.0,111210.0,0.15798083]
[1756852335669,0.53135383,111220.0,111210.0,0.33888077]
[1756852335886,0.53135383,111220.0,111210.0,0.34188077]
[1756852336099,0.53135383,111220.0,111210.0,0.33688077]
[1756852336304,0.18180377,111220.0,111210.0,0.33688077]
[1756852336482,0.18180377,111220.0,111210.0,0.34188077]
[1756852338080,0.77556365,111230.0,111210.0,0.34188077]
[1756852338284,0.00280974,111220.0,111210.0,0.34188077]
[1756852339048,0.00280974,111220.0,111210.0,0.33988077]
[1756852339316,0.18263351,111220.0,111210.0,0.69043083]
[1756852339772,0.18263351,111220.0,111210.0,0.68943083]
[1756852339989,0.18263351,111220.0,111210.0,0.33988077]
[1756852340211,0.18461351,111220.0,111210.0,0.34188077]
[1756852340419,0.18180377,111220.0,111210.0,0.34188077]
[1756852341383,0.18180377,111220.0,111210.0,0.15898083]
[1756852341574,0.53135383,111220.0,111210.0,0.15682083]
[1756852341828,0.18180377,111220.0,111210.0,0.15682083]
[1756852342042,0.55838981,111220.0,111210.0,0.15898083]
[1756852349720,0.55838981,111220.0,111210.0,0.00770083]
[1756852349929,0.55838981,111220.0,111210.0,0.00554083]
[1756852350131,0.56139981,111220.0,111210.0,0.00554083]
[1756852350577,1.34286586,111220.0,111210.0,0.00554083]
[1756852350997,1.49414586,111220.0,111210.0,0.00554083]
[1756852351645,1.49414586,111220.0,111210.0,0.00354083]
[1756852351851,1.49414586,111220.0,111210.0,0.00054083]
[1756852352056,1.49414586,111220.0,111210.0,0.00154083]
[1756852352280,0.79504574,111220.0,111210.0,0.00354083]
[1756852352484,1.49414586,111220.0,111210.0,0.00254083]
[1756852352676,1.49414586,111220.0,111210.0,0.00354083]
[1756852353244,1.51346344,111220.0,111210.0,0.00354083]
[1756852360452,0.81436332,111220.0,111210.0,0.00354083]
[1756852360635,1.51346344,111220.0,111210.0,0.00354083]
[1756852369530,1.16433686,111220.0,111210.0,0.00354083]
[1756852370736,1.64388251,111220.0,111210.0,0.00354083]
[1756852370937,1.66065099,111220.0,111210.0,0.00354083]
[1756852371397,1.68480779,111220.0,111210.0,0.00354083]
[1756852371808,1.68480779,111220.0,111210.0,0.00254083]
[1756852372015,1.68480779,111220.0,111210.0,0.00054083]
[1756852372975,1.68580779,111220.0,111210.0,0.00054083]
[1756852374245,1.68680779,111220.0,111210.0,0.00054083]
[1756852375503,1.33683425,111220.0,111210.0,0.00054083]
[1756852375687,1.31098599,111220.0,111210.0,0.00054083]
[1756852377508,1.15669599,111220.0,111210.0,0.00054083]
[1756852377670,1.30797599,111220.0,111210.0,0.00054083]
[1756852377867,1.27863345,111220.0,111210.0,0.00054083]
[1756852378073,1.28159345,111220.0,111210.0,0.00054083]
[1756852378281,1.28160586,111220.0,111210.0,0.00054083]
[1756852380715,1.13032586,111220.0,111210.0,0.00054083]
[1756852380941,1.28160586,111220.0,111210.0,0.00054083]
[1756852381170,1.13032586,111220.0,111210.0,0.00054083]
[1756852381380,1.28160586,111220.0,111210.0,0.00054083]
[1756852381869,1.66092194,111220.0,111210.0,0.00054083]
[1756852384659,1.87740452,111220.0,111210.0,0.00054083]
[1756852384875,1.84527605,111220.0,111210.0,0.00054083]
[1756852385911,1.78175179,111220.0,111210.0,0.00054083]
[1756852386357,1.81397029,111220.0,111210.0,0.00054083]
[1756852391838,1.81396639,111220.0,111210.0,0.00054083]
[1756852393143,1.66268639,111220.0,111210.0,0.00054083]
[1756852393409,1.78811813,111220.0,111210.0,0.00054083]
[1756852393661,1.83183455,111220.0,111210.0,0.00054083]
[1756852393963,1.90588238,111220.0,111210.0,0.00054083]
[1756852397622,0.93195105,111220.0,111210.0,0.00566083]
[1756852397873,1.17852313,111220.0,111210.0,0.00566083]
[1756852398096,1.29846463,111220.0,111210.0,0.00566083]
[1756852398573,1.27752581,111220.0,111210.0,0.00566083]
[1756852400957,1.30888835,111220.0,111210.0,0.00566083]
[1756852404626,1.30260006,111220.0,111210.0,0.00566083]
[1756852404845,1.30888908,111220.0,111210.0,0.00566083]
[1756852405651,1.15672908,111220.0,111210.0,0.00566083]
[1756852405854,1.30872908,111220.0,111210.0,0.00566083]
[1756852408133,1.30872131,111220.0,111210.0,0.00566083]
[1756852408332,1.30662131,111220.0,111210.0,0.00566083]
[1756852408938,1.15470131,111220.0,111210.0,0.00566083]
[1756852409182,1.30658131,111220.0,111210.0,0.00566083]
[1756852410509,1.30860131,111220.0,111210.0,0.00566083]
[1756852412131,1.30658131,111220.0,111210.0,0.00566083]
[1756852414375,1.27723877,111220.0,111210.0,0.00566083]
[1756852415114,1.27925877,111220.0,111210.0,0.00566083]
[1756852415905,1.27925877,111220.0,111210.0,0.00267083]
[1756852416313,1.27925877,111220.0,111210.0,0.00566083]
[1756852417377,0.77538523,111220.0,111210.0,0.00566083]
[1756852417586,1.12535877,111220.0,111210.0,0.00566083]
[1756852417795,1.27703877,111220.0,111210.0,0.00566083]
[1756852418701,1.12535877,111220.0,111210.0,0.00566083]
[1756852418930,0.87986244,111220.0,111210.0,0.00566083]
[1756852419153,1.22983598,111220.0,111210.0,0.00566083]
[1756852420448,1.07346296,111220.0,111210.0,0.00566083]
[1756852420647,0.87512942,111220.0,111210.0,0.00566083]
[1756852420930,0.53512942,111220.0,111210.0,0.00566083]
[1756852421131,0.51581574,111220.0,111210.0,0.00566083]
[1756852421343,0.86578928,111220.0,111210.0,0.00566083]
[1756852425785,0.86578928,111220.0,111210.0,0.00581083]
[1756852425990,0.86786928,111220.0,111210.0,0.00581083]
[1756852426191,0.86786928,111220.0,111210.0,0.00260083]
[1756852426579,0.86786928,111220.0,111210.0,0.00581083]
[1756852429552,1.217815,111220.0,111210.0,0.00581083]
[1756852431898,1.221035,111220.0,111210.0,0.00054083]
[1756852433711,1.217815,111220.0,111210.0,0.00054083]
[1756852436750,0.61303173,111220.0,111210.0,0.00054083]
[1756852436960,1.99021986,111220.0,111210.0,0.00054083]
[1756852437377,1.99651156,111220.0,111210.0,0.00054083]
[1756852438448,2.01329124,111220.0,111210.0,0.00054083]
[1756852442354,2.03743189,111220.0,111210.0,0.00054083]
[1756852443332,1.62892939,111220.0,111210.0,0.00581083]
[1756852443602,1.45648874,111220.0,111210.0,0.00054083]
[1756852443840,1.60804874,111220.0,111210.0,0.00054083]
[1756852444077,1.45648874,111220.0,111210.0,0.00054083]
[1756852444330,1.60812874,111220.0,111210.0,0.00054083]
[1756852446167,1.60490874,111220.0,111210.0,0.00260083]
[1756852446369,0.75126948,111220.0,111210.0,0.00581083]
[1756852446576,0.90286948,111220.0,111210.0,0.00581083]
[1756852446805,1.58600906,111220.0,111210.0,0.00581083]
[1756852447263,0.8881698,111220.0,111210.0,0.00581083]
[1756852447476,1.58808906,111220.0,111210.0,0.00581083]
[1756852447809,1.43648906,111220.0,111210.0,0.00581083]
[1756852447982,1.58600906,111220.0,111210.0,0.00581083]
[1756852448598,1.58809906,111220.0,111210.0,0.00581083]
[1756852450116,1.43649906,111220.0,111210.0,0.00581083]
[1756852450347,1.58809906,111220.0,111210.0,0.00581083]
[1756852450817,1.65010547,111220.0,111210.0,0.00054083]
[1756852451022,2.01309934,111220.0,111210.0,0.00054083]
[1756852451436,2.03723999,111220.0,111210.0,0.00054083]
[1756852454014,0.9873611,111220.0,111210.0,0.00054083]
[1756852454221,2.03723999,111220.0,111210.0,0.00054083]
[1756852458746,2.15865755,111220.0,111210.0,0.00054083]
[1756852458891,2.19087605,111220.0,111210.0,0.00054083]
[1756852459500,2.11454905,111220.0,111210.0,0.00054083]
[1756852461493,1.96294905,111220.0,111210.0,0.00054083]
[1756852461699,2.11494905,111220.0,111210.0,0.00054083]
[1756852462160,2.10865735,111220.0,111210.0,0.00054083]
[1756852462373,2.11666063,111220.0,111210.0,0.00054083]
[1756852463467,2.20037794,111220.0,111210.0,0.00054083]
[1756852463667,2.55033757,111220.0,111210.0,0.00054083]
[1756852464231,2.20037794,111220.0,111210.0,0.00054083]
[1756852464343,2.24857751,111220.0,111210.0,0.00054083]
[1756852464923,2.24757751,111220.0,111210.0,0.00054083]
[1756852465157,2.24957751,111220.0,111210.0,0.00054083]
[1756852465539,2.24857751,111220.0,111210.0,0.00054083]
[1756852465690,2.21735901,111220.0,111210.0,0.00054083]
[1756852466268,2.21635901,111220.0,111210.0,0.00054083]
[1756852466444,2.24858821,111220.0,111210.0,0.00054083]
[1756852466597,2.21735901,111220.0,111210.0,0.00054083]
[1756852467375,2.23143702,111220.0,111210.0,0.00054083]
[1756852468372,2.26365916,111220.0,111210.0,0.00054083]
[1756852468799,2.10860916,111220.0,111210.0,0.00054083]
[1756852468956,2.2325909,111220.0,111210.0,0.00574083]
[1756852469368,2.20319629,111220.0,111210.0,0.00574083]
[1756852470317,1.0014374,111220.0,111210.0,0.00574083]
[1756852470543,1.70724177,111220.0,111210.0,0.00574083]
[1756852470884,1.63626295,111220.0,111210.0,0.00574083]
[1756852471276,1.66042694,111220.0,111210.0,0.00574083]
[1756852472056,1.66251694,111220.0,111210.0,0.00574083]
[1756852472783,1.50858694,111220.0,111210.0,0.00574083]
[1756852472966,1.66046694,111220.0,111210.0,0.00574083]
[1756852474156,2.12369784,111220.0,111210.0,0.00054083]
[1756852474726,2.1495461,111220.0,111210.0,0.00054083]
[1756852474903,2.1464961,111220.0,111210.0,0.00250083]
[1756852475490,2.1464961,111220.0,111210.0,0.00054083]
[1756852475873,2.14649048,111220.0,111210.0,0.00054083]
[1756852476860,2.14649048,111220.0,111210.0,0.00250083]
[1756852477065,2.14649048,111220.0,111210.0,0.00574083]
[1756852477722,1.56378419,111220.0,111210.0,0.00574083]
[1756852477924,1.66034132,111220.0,111210.0,0.00574083]
[1756852478959,1.66030132,111220.0,111210.0,0.00574083]
[1756852479942,1.66239132,111220.0,111210.0,0.00574083]
[1756852480348,2.01235095,111220.0,111210.0,0.00250083]
[1756852481130,2.01235095,111220.0,111210.0,0.00555083]
[1756852483232,2.01235095,111220.0,111210.0,0.00250083]
[1756852485409,2.01235095,111220.0,111210.0,0.00555083]
[1756852485627,1.50858132,111220.0,111210.0,0.00555083]
[1756852485849,0.77643992,111220.0,111210.0,0.00555083]
[1756852486066,0.7454534,111220.0,111210.0,0.02843083]
[1756852486265,0.8970934,111220.0,111210.0,0.02843083]
[1756852486472,0.82270489,111220.0,111210.0,0.02843083]
[1756852486887,1.16270489,111220.0,111210.0,0.02843083]
[1756852487604,1.15970489,111220.0,111210.0,0.02843083]
[1756852489214,1.14037537,111220.0,111210.0,0.02843083]
[1756852489669,1.14033117,111220.0,111210.0,0.02843083]
[1756852491083,1.14242117,111220.0,111210.0,0.00054083]
[1756852491513,1.16473809,111220.0,111210.0,0.00054083]
[1756852491729,1.53012147,111220.0,111210.0,0.00054083]
[1756852491942,1.52563762,111220.0,111210.0,0.00054083]
[1756852492361,1.58084049,111220.0,111210.0,0.00054083]
[1756852494116,1.58184049,111220.0,111210.0,0.00054083]
[1756852494521,1.58084049,111220.0,111210.0,0.00054083]
[1756852495466,1.60500448,111220.0,111210.0,0.00054083]
[1756852496100,1.04316618,111220.0,111210.0,0.00257083]
[1756852496349,1.1642711,111220.0,111210.0,0.00562083]
[1756852496572,1.1705625,111220.0,111210.0,0.00562083]
[1756852496805,0.82064707,111220.0,111210.0,0.00562083]
[1756852497022,1.1726525,111220.0,111210.0,0.00562083]
[1756852497222,1.0210025,111220.0,111210.0,0.00562083]
[1756852497520,1.1715625,111220.0,111210.0,0.00562083]
[1756852497766,1.1672711,111220.0,111210.0,0.00562083]
[1756852498189,1.1662711,111220.0,111210.0,0.00562083]
[1756852498681,1.1672711,111220.0,111210.0,0.00562083]
[1756852499093,1.1672311,111220.0,111210.0,0.00562083]
[1756852499922,1.1652311,111220.0,111210.0,0.00562083]
[1756852500191,1.1642311,111220.0,111210.0,0.00562083]
[1756852500409,1.0127111,111220.0,111210.0,0.00562083]
[1756852500618,0.79029574,111220.0,111210.0,0.02850083]
[1756852501210,1.14021117,111220.0,111210.0,0.02850083]
[1756852501441,1.14021117,111220.0,111210.0,0.20994785]
[1756852501442,0.11895197,111220.0,111210.0,0.20994785]
[1756852501634,0.02703598,111220.0,111210.0,0.20834077]
[1756852501834,0.3313276,111230.0,111210.0,0.20834077]
[1756852502184,0.4502781,111230.0,111220.0,0.00465675]
[1756852502408,0.4502781,111230.0,111220.0,0.18651052]
[1756852502409,0.2987581,111230.0,111220.0,0.18651052]
[1756852502636,0.4502781,111230.0,111220.0,0.20778377]
[1756852502856,0.02703451,111230.0,111220.0,0.20778377]
[1756852503070,0.15152,111240.0,111230.0,0.1798076]
[1756852503284,0.1189479,111240.0,111230.0,0.1818376]
[1756852503489,0.29873934,111240.0,111230.0,0.2077676]
[1756852504349,0.02703191,111240.0,111230.0,0.2077676]
[1756852504555,0.20682335,111240.0,111230.0,0.2077676]
[1756852506502,0.20682335,111240.0,111230.0,0.02796]
[1756852507574,0.20682335,111240.0,111230.0,0.02896]
[1756852507840,0.20682335,111240.0,111230.0,0.02996]
[1756852508053,0.02703191,111240.0,111230.0,0.21137367]
[1756852508266,0.68041446,111250.0,111230.0,0.2097676]
[1756852508482,0.79936046,111250.0,111230.0,0.2067176]
[1756852508717,0.79936046,111250.0,111240.0,0.00312]
[1756852508917,0.79936046,111250.0,111240.0,0.00519]
[1756852509645,0.118946,111250.0,111240.0,0.186587]
[1756852509849,0.45036128,111250.0,111240.0,0.18498144]
[1756852512450,0.29872128,111250.0,111240.0,0.18498144]
[1756852512864,0.45024128,111250.0,111240.0,0.18498144]
[1756852513646,0.45024128,111250.0,111240.0,0.18898144]
[1756852517786,0.20680529,111250.0,111240.0,0.18898144]
[1756852517927,0.17851001,111250.0,111240.0,0.18898144]
[1756852518130,0.35828529,111250.0,111240.0,0.18898144]
[1756852519543,0.18882097,111260.0,111250.0,0.17977528]
[1756852519775,0.42311511,111260.0,111250.0,0.18345034]
[1756852519988,0.17974296,111270.0,111260.0,0.17975912]
[1756852520184,0.42309895,111270.0,111260.0,0.18494912]
[1756852520758,0.42323951,111270.0,111260.0,0.18494912]
[1756852521393,0.33132352,111270.0,111260.0,0.18494912]
[1756852521825,0.15158056,111270.0,111260.0,0.18494912]
[1756852522026,0.33132352,111270.0,111260.0,0.18494912]
[1756852523949,0.33344352,111270.0,111260.0,0.18494912]
[1756852524736,0.33132352,111270.0,111260.0,0.18494912]
[1756852525547,0.33132352,111270.0,111260.0,0.18694912]
[1756852526483,0.33132352,111270.0,111260.0,0.18894912]
[1756852528628,0.00014056,111270.0,111260.0,0.18894912]
[1756852528831,0.00014056,111270.0,111260.0,0.53886455]
[1756852531212,0.00014056,111270.0,111260.0,0.34026912]
[1756852533554,0.00014056,111270.0,111260.0,0.69018455]
[1756852536561,0.00014056,111270.0,111260.0,0.34026912]
[1756852536772,0.00014056,111270.0,111260.0,0.69018455]
[1756852538229,0.00014056,111270.0,111260.0,0.71350455]
[1756852541082,0.00014056,111270.0,111260.0,0.56218455]
[1756852541291,0.00014056,111270.0,111260.0,0.71350455]
[1756852544814,0.00014056,111270.0,111260.0,0.63278912]
[1756852545024,0.00014056,111270.0,111260.0,0.98270455]
[1756852545722,0.00014056,111270.0,111260.0,0.98266455]
[1756852545936,0.00014056,111270.0,111260.0,0.63274912]
[1756852546137,0.00014056,111270.0,111260.0,0.2732]
[1756852546138,0.53488895,111270.0,111260.0,0.2732]
[1756852546349,0.53488895,111270.0,111260.0,0.60423912]
[1756852547147,0.53488895,111270.0,111260.0,0.42448]
[1756852547375,0.53488895,111270.0,111260.0,0.60423912]
[1756852548417,0.53488895,111270.0,111260.0,0.42448]
[1756852548630,0.18201352,111270.0,111260.0,0.60423912]
[1756852548818,0.53488895,111270.0,111260.0,0.60423912]
[1756852549448,0.53192895,111270.0,111260.0,0.60638912]
[1756852549634,0.53488895,111270.0,111260.0,0.45295912]
[1756852549787,0.18201352,111270.0,111260.0,0.45295912]
[1756852549989,0.53192895,111270.0,111260.0,0.45295912]
[1756852550202,0.53192895,111270.0,111260.0,0.45832912]
[1756852550401,0.53192895,111270.0,111260.0,0.60960912]
[1756852550606,0.53488895,111270.0,111260.0,0.60423912]
[1756852550812,0.53488895,111270.0,111260.0,0.33503912]
[1756852551553,0.53455584,111270.0,111260.0,0.33503912]
[1756852553101,0.88413816,111270.0,111260.0,0.004]
[1756852553282,0.99540986,111270.0,111260.0,0.15528]
[1756852554495,1.14668986,111270.0,111260.0,0.004]
[1756852554681,1.15299063,111270.0,111260.0,0.004]
[1756852556387,1.14668986,111270.0,111260.0,0.004]
[1756852556934,1.17371566,111270.0,111260.0,0.004]
[1756852559275,1.15435995,111270.0,111260.0,0.004]
[1756852564555,1.12733415,111270.0,111260.0,0.004]
[1756852565390,0.97309415,111270.0,111260.0,0.004]
[1756852565606,1.12437415,111270.0,111260.0,0.00937]
[1756852565808,1.12437415,111270.0,111260.0,0.18912912]
[1756852566012,1.12437415,111270.0,111260.0,0.00937]
[1756852566377,0.77479183,111270.0,111260.0,0.00937]
[1756852567360,0.44163887,111270.0,111260.0,0.19073367]
[1756852567561,0.44163887,111270.0,111260.0,0.18912912]
[1756852567562,0.09205655,111270.0,111260.0,0.18912912]
[1756852567798,0.44163887,111270.0,111260.0,0.18912912]
[1756852568077,0.27179951,111270.0,111260.0,0.18912912]
[1756852568527,0.00014056,111270.0,111260.0,0.18912912]
[1756852568854,0.00014056,111270.0,111260.0,0.34040912]
[1756852569260,0.34972288,111270.0,111260.0,0.34040912]
[1756852569671,0.00014056,111270.0,111260.0,0.34040912]
[1756852570501,0.34972288,111270.0,111260.0,0.34040912]
[1756852573717,0.00014056,111270.0,111260.0,0.34040912]
[1756852573921,0.34972288,111270.0,111260.0,0.34040912]
[1756852574308,0.00014056,111270.0,111260.0,0.75230339]
[1756852574940,0.00014056,111270.0,111260.0,0.40272107]
[1756852580506,0.00014056,111270.0,111260.0,0.67192107]
[1756852580713,0.00014056,111270.0,111260.0,1.02150339]
[1756852580989,0.00014056,111270.0,111260.0,0.67192107]
[1756852582470,0.00014056,111270.0,111260.0,0.75230339]
[1756852582804,0.00014056,111270.0,111260.0,0.77932191]
[1756852585117,0.35881081,111280.0,111270.0,0.17974296]
[1756852585325,0.35881081,111280.0,111270.0,0.18295296]
[1756852585538,0.35881081,111280.0,111270.0,0.18495296]
[1756852587053,0.35881081,111280.0,111270.0,0.18595296]
[1756852587827,0.35881081,111280.0,111270.0,0.18695296]
[1756852590435,0.36080081,111280.0,111270.0,0.18174296]
[1756852592762,0.36080081,111280.0,111270.0,0.18374296]
[1756852593169,0.36080081,111280.0,111270.0,0.18695296]
[1756852593393,0.35881081,111280.0,111270.0,0.18695296]
[1756852595230,0.36080081,111280.0,111270.0,0.18695296]
[1756852595764,0.01121849,111280.0,111270.0,0.18695296]
[1756852595976,0.36080081,111280.0,111270.0,0.18695296]
[1756852598643,0.00922849,111280.0,111270.0,0.18695296]
[1756852598855,0.35881081,111280.0,111270.0,0.18695296]
[1756852599233,0.36082081,111280.0,111270.0,0.18695296]
[1756852600006,0.35881081,111280.0,111270.0,0.18695296]
[1756852600429,0.35881081,111280.0,111270.0,0.19601286]
[1756852600629,0.00922849,111280.0,111270.0,0.54559518]
[1756852601434,0.00922849,111280.0,111270.0,0.57261136]
[1756852606603,0.00922849,111280.0,111270.0,0.56355146]
[1756852606807,0.00922849,111280.0,111270.0,0.18695296]
[1756852607009,0.01123849,111280.0,111270.0,0.33815296]
[1756852607236,0.01123849,111280.0,111270.0,0.18695296]
[1756852607440,0.01123849,111280.0,111270.0,0.33815296]
[1756852608375,0.36082081,111280.0,111270.0,0.18174296]
[1756852608577,0.71340313,111280.0,111270.0,0.33294296]
[1756852609000,0.36382081,111280.0,111270.0,0.33294296]
[1756852609418,0.36082081,111280.0,111270.0,0.33294296]
[1756852609623,0.36082081,111280.0,111270.0,0.18174296]
[1756852609830,0.36382081,111280.0,111270.0,0.33294296]
[1756852610043,0.00922849,111280.0,111270.0,0.33815296]
[1756852610619,0.00922849,111280.0,111270.0,0.68773528]
[1756852611435,0.00922849,111280.0,111270.0,0.33815296]
[1756852611635,0.00922849,111280.0,111270.0,0.68754978]
[1756852612158,0.00922849,111280.0,111270.0,0.33815296]
[1756852620466,0.00922849,111280.0,111270.0,0.80040459]
[1756852620704,0.00922849,111280.0,111270.0,1.17438141]
[1756852621216,0.00922849,111280.0,111270.0,1.20139329]
[1756852621422,0.00922849,111280.0,111270.0,1.59139329]
[1756852621631,0.00922849,111280.0,111270.0,1.85959329]
[1756852621840,0.0015658,111280.0,111270.0,1.86159329]
[1756852622242,0.0015658,111280.0,111270.0,1.86059329]
[1756852622448,0.0015658,111280.0,111270.0,1.86659329]
[1756852622747,0.0015658,111280.0,111270.0,1.59539329]
[1756852623155,0.0025658,111280.0,111270.0,1.99939329]
[1756852624344,0.0025658,111280.0,111270.0,2.04939329]
[1756852624559,1e-08,111280.0,111270.0,2.1302565]
[1756852626318,1e-08,111280.0,111270.0,2.04939329]
[1756852627755,1e-08,111280.0,111270.0,2.31859329]
[1756852631921,0.00304,111320.0,111310.0,0.17967837]
[1756852632145,0.00350944,111320.0,111310.0,0.3324004]
[1756852632351,0.00563944,111320.0,111310.0,0.33079837]
[1756852632980,0.00563944,111320.0,111310.0,0.33179837]
[1756852641330,0.00259944,111320.0,111310.0,0.33374837]
[1756852641546,0.00259944,111320.0,111310.0,0.33179837]
[1756852641775,0.00259944,111320.0,111310.0,0.33374837]
[1756852642809,0.00259944,111320.0,111310.0,0.18262837]
[1756852643015,0.00563944,111320.0,111310.0,0.18067837]
[1756852643243,0.00563944,111320.0,111310.0,0.33175837]
[1756852643448,0.00259944,111320.0,111310.0,0.33175837]
[1756852643860,0.00259944,111320.0,111310.0,0.33370837]
[1756852644072,0.00563944,111320.0,111310.0,0.33175837]
[1756852645042,0.00563944,111320.0,111310.0,0.18067837]
[1756852645304,0.00563944,111320.0,111310.0,0.33175837]
[1756852648472,0.00259944,111320.0,111310.0,0.33175837]
[1756852650665,0.00046944,111320.0,111310.0,0.79893]
[1756852651089,0.00046944,111320.0,111310.0,0.82593273]
[1756852651468,0.00046944,111320.0,111310.0,0.84849273]
[1756852651714,0.00046944,111320.0,111310.0,0.84749273]
[1756852651990,0.00046944,111320.0,111310.0,0.85049273]
[1756852652201,0.00046944,111320.0,111310.0,0.85349273]
[1756852652652,0.00046944,111320.0,111310.0,0.89425591]
[1756852652852,1e-08,111320.0,111310.0,0.94425591]
[1756852653057,1e-08,111320.0,111310.0,1.29365273]
[1756852653279,1e-08,111320.0,111310.0,1.64304955]
[1756852653494,1e-08,111320.0,111310.0,0.95326508]
[1756852653706,1e-08,111320.0,111310.0,1.3026619]
[1756852654320,1e-08,111320.0,111310.0,1.2996619]
[1756852654776,1e-08,111320.0,111310.0,1.7026619]
[1756852654989,1e-08,111320.0,111310.0,1.6996619]
[1756852655197,1e-08,111320.0,111310.0,1.7036619]
[1756852657647,1e-08,111330.0,111320.0,0.64060105]
[1756852657869,1e-08,111330.0,111320.0,1.43131068]
[1756852658099,1e-08,111330.0,111320.0,0.75999704]
[1756852658328,1e-08,111330.0,111320.0,1.15999704]
[1756852659004,1e-08,111330.0,111320.0,1.16099704]
[1756852659219,1e-08,111330.0,111320.0,1.16399704]
[1756852660591,1e-08,111330.0,111320.0,1.31595704]
[1756852661680,1e-08,111330.0,111320.0,1.31955631]
[1756852666129,1e-08,111330.0,111320.0,1.31967631]
[1756852669428,1e-08,111330.0,111320.0,1.58887631]
[1756852669637,1e-08,111330.0,111320.0,1.58879631]
[1756852673902,1e-08,111330.0,111320.0,1.78570357]
[1756852674114,1e-08,111330.0,111320.0,1.58951631]
[1756852674322,1e-08,111330.0,111320.0,1.93842357]
[1756852676232,1e-08,111330.0,111320.0,1.58951631]
[1756852676880,1e-08,111330.0,111320.0,1.93842357]
[1756852678375,0.00208001,111330.0,111320.0,1.68923475]
[1756852678632,0.00526001,111330.0,111320.0,1.49109749]
[1756852678840,0.00208001,111330.0,111320.0,1.51411631]
[1756852679053,0.00208001,111330.0,111320.0,1.86302357]
[1756852679275,0.00208001,111330.0,111320.0,2.21193083]
[1756852680451,0.00208001,111330.0,111320.0,2.05921083]
[1756852680641,0.00526001,111330.0,111320.0,1.35931631]
[1756852680880,0.00526001,111330.0,111320.0,1.86094357]
[1756852682031,0.00208001,111330.0,111320.0,1.86094357]
[1756852682815,0.00208001,111330.0,111320.0,1.51203631]
[1756852683230,0.00208001,111330.0,111320.0,1.51411631]
[1756852683434,0.00208001,111330.0,111320.0,1.86302357]
[1756852685004,0.00208001,111330.0,111320.0,1.86094357]
[1756852685520,0.00208001,111330.0,111320.0,1.35931631]
[1756852685746,0.00526001,111330.0,111320.0,1.51195631]
[1756852686162,0.00526001,111330.0,111320.0,1.86086357]
[1756852686373,0.00526001,111330.0,111320.0,1.51191631]
[1756852686578,0.00526001,111330.0,111320.0,1.86082357]
[1756852687007,0.35416727,111330.0,111320.0,1.30931631]
[1756852687209,0.35416727,111330.0,111320.0,1.06191631]
[1756852688772,0.35416727,111330.0,111320.0,0.72191631]
[1756852690061,0.00526001,111330.0,111320.0,0.72191631]
[1756852690291,0.35416727,111330.0,111320.0,0.72191631]
[1756852691501,0.35098727,111330.0,111320.0,0.72191631]
[1756852691706,0.35414727,111330.0,111320.0,0.72191631]
[1756852692494,0.35414727,111330.0,111320.0,0.27917749]
[1756852692700,0.35414727,111330.0,111320.0,0.1872615]
[1756852692903,0.70305453,111330.0,111320.0,0.33614223]
[1756852693102,0.00524001,111330.0,111320.0,0.33614223]
[1756852693507,0.35414727,111330.0,111320.0,0.33614223]
[1756852695600,0.00524001,111330.0,111320.0,0.33614223]
[1756852696078,0.35414727,111330.0,111320.0,0.33614223]
[1756852702261,0.35098727,111330.0,111320.0,0.33614223]
[1756852702918,0.35414727,111330.0,111320.0,0.33614223]
[1756852705278,1e-08,111330.0,111320.0,0.78205548]
[1756852705682,1e-08,111330.0,111320.0,0.8029943]
[1756852705896,1e-08,111330.0,111320.0,0.8279543]
[1756852706568,1e-08,111330.0,111320.0,0.85495534]
[1756852708812,1e-08,111330.0,111320.0,0.50604808]
[1756852709017,1e-08,111330.0,111320.0,0.85495534]
[1756852709222,1e-08,111330.0,111320.0,0.50604808]
[1756852709512,1e-08,111330.0,111320.0,0.85495534]
[1756852709739,1e-08,111330.0,111320.0,1.25495534]
[1756852711124,1e-08,111330.0,111320.0,1.52415534]
[1756852714279,1e-08,111330.0,111320.0,1.8730626]
[1756852714501,1e-08,111330.0,111320.0,2.2130626]
[1756852720110,1e-08,111330.0,111320.0,2.2630626]
[1756852721325,1e-08,111330.0,111320.0,2.3130626]
[1756852723129,1e-08,111330.0,111320.0,2.66196986]
[1756852723334,1e-08,111330.0,111320.0,2.3130626]
[1756852725688,1e-08,111330.0,111320.0,2.66196986]
[1756852725886,1e-08,111330.0,111320.0,2.3130626]
[1756852727080,1e-08,111330.0,111320.0,2.3142226]
[1756852732231,1e-08,111330.0,111320.0,2.5121026]
[1756852732437,0.00326,111350.0,111340.0,0.52853722]
[1756852732645,0.00326,111350.0,111340.0,1.10637321]
[1756852732794,0.00527,111350.0,111340.0,0.75746595]
[1756852732990,0.00527,111350.0,111340.0,1.5333681]
[1756852733477,0.00221,111350.0,111340.0,1.5333681]
[1756852733689,0.00221,111350.0,111340.0,1.37997035]
[1756852733881,0.00527,111350.0,111340.0,1.18442084]